bitfinex-derivatives/quotes_BTCF0:USTF0_20251009
["timestamp","ask_amount","ask_price","bid_price","bid_amount"]
[1760018633273,0.44134,122230.0,122220.0,0.01919]
[1760018633779,0.84134,122230.0,122220.0,2.63612]
[1760018633983,0.84134,122230.0,122220.0,2.87164]
[1760018634179,0.79104,122230.0,122220.0,2.9534269]
[1760018634394,0.3608,122230.0,122220.0,2.9534269]
[1760018634980,0.4425802,122230.0,122220.0,3.01883721]
[1760018635183,0.4425802,122230.0,122220.0,3.01683721]
[1760018635380,0.3608,122230.0,122220.0,3.01783721]
[1760018635776,0.3608,122230.0,122200.0,0.4425943]
[1760018635777,0.39104,122230.0,122200.0,0.3608]
[1760018635982,0.112047,122190.0,122180.0,6.045e-05]
[1760018636170,0.833647,122190.0,122180.0,6.045e-05]
[1760018636372,0.803407,122190.0,122180.0,0.82854045]
[1760018636578,0.7216,122190.0,122180.0,0.85750045]
[1760018636779,0.803407,122190.0,122180.0,0.85750045]
[1760018637073,0.803407,122190.0,122180.0,2.87126045]
[1760018637375,0.803407,122190.0,122180.0,2.04262045]
[1760018637586,0.803407,122190.0,122180.0,2.87106045]
[1760018639383,0.803407,122190.0,122180.0,2.87406045]
[1760018639583,1.233647,122190.0,122180.0,0.00306045]
[1760018639883,1.57358192,122190.0,122180.0,0.00306045]
[1760018640080,1.57358192,122190.0,122180.0,0.82966045]
[1760018640279,0.0818472,122130.0,122120.0,0.04595]
[1760018640473,0.0818472,122130.0,122110.0,0.07895999]
[1760018640474,0.0818594,122120.0,122110.0,0.02896]
[1760018640678,0.4426594,122120.0,122110.0,0.86408]
[1760018641183,0.0818606,122110.0,122100.0,0.0347159]
[1760018641389,0.44272619,122110.0,122100.0,2.0774759]
[1760018641584,0.36086559,122110.0,122100.0,2.07225]
[1760018641796,0.36086559,122110.0,122100.0,2.9885573]
[1760018642081,6.559e-05,122110.0,122100.0,2.89405222]
[1760018642285,0.3608,122130.0,122120.0,0.1041539]
[1760018642479,0.3608,122130.0,122120.0,0.44708882]
[1760018642678,0.3608,122140.0,122130.0,0.0993572]
[1760018642874,0.3608,122140.0,122130.0,0.9337172]
[1760018643080,0.3608,122150.0,122140.0,0.0818405]
[1760018643282,0.3608,122150.0,122140.0,0.9157605]
[1760018644180,0.3608,122150.0,122140.0,0.0818405]
[1760018644384,0.3608,122150.0,122140.0,0.9156005]
[1760018644585,0.3608,122150.0,122140.0,0.0818405]
[1760018644784,0.3608,122150.0,122140.0,0.9429605]
[1760018644980,0.3608,122150.0,122130.0,0.43928902]
[1760018645279,0.3608,122150.0,122140.0,2.9576005]
[1760018645582,0.7216,122150.0,122140.0,2.9854405]
[1760018646085,0.7216,122150.0,122140.0,2.9874405]
[1760018646495,1.20214,122150.0,122140.0,0.002]
[1760018646788,1.57360872,122150.0,122140.0,0.51024]
[1760018646977,1.57360872,122150.0,122140.0,0.002]
[1760018647178,1.57360872,122150.0,122140.0,1e-07]
[1760018647376,1.57360872,122150.0,122140.0,0.8335601]
[1760018647584,0.8336738,122150.0,122140.0,1e-07]
[1760018647789,0.8336738,122150.0,122140.0,0.8334401]
[1760018647985,1.17360872,122150.0,122140.0,1e-07]
[1760018648185,1.17360872,122150.0,122140.0,0.8334401]
[1760018648386,1.17360872,122150.0,122140.0,0.8330401]
[1760018648585,1.57360872,122150.0,122140.0,0.8330401]
[1760018648988,1.57360872,122150.0,122140.0,0.8328401]
[1760018649184,1.57360872,122150.0,122140.0,0.83284]
[1760018649381,1.57360872,122150.0,122110.0,0.08186]
[1760018649382,0.02815,122130.0,122110.0,0.08186]
[1760018649687,0.3608,122120.0,122100.0,0.17568141]
[1760018649882,0.3608,122110.0,122100.0,0.17568141]
[1760018650189,0.4426526,122130.0,122120.0,0.04718]
[1760018650486,0.4910126,122130.0,122120.0,0.87874]
[1760018650887,0.4910126,122130.0,122120.0,0.04718]
[1760018651078,0.4910126,122130.0,122120.0,0.9603939]
[1760018651282,0.4910126,122130.0,122120.0,0.8781]
[1760018651479,0.4910126,122130.0,122120.0,0.9599539]
[1760018651882,0.4426526,122130.0,122120.0,0.9593539]
[1760018652787,0.4426526,122130.0,122120.0,0.1513339]
[1760018652788,0.3608,122130.0,122120.0,0.1513339]
[1760018652987,0.3608,122130.0,122120.0,3.0256539]
[1760018653688,0.3608,122130.0,122120.0,3.4256539]
[1760018653983,0.3608,122140.0,122130.0,0.1465372]
[1760018654184,0.3608,122140.0,122130.0,0.1290272]
[1760018654485,0.5191505,122140.0,122120.0,0.0097]
[1760018654684,0.77724492,122130.0,122120.0,0.0097]
[1760018654984,0.77724492,122130.0,122120.0,0.05688]
[1760018655388,1.17724492,122130.0,122120.0,0.0097]
[1760018655688,1.17724492,122130.0,122120.0,0.83966]
[1760018655878,1.17724492,122130.0,122120.0,0.0097]
[1760018656084,0.77724492,122130.0,122120.0,0.88688]
[1760018656286,0.77724492,122130.0,122120.0,0.0097]
[1760018656485,0.77724492,122130.0,122120.0,0.53538]
[1760018656687,0.77724492,122130.0,122120.0,0.83954]
[1760018657083,1.17724492,122130.0,122120.0,0.0077]
[1760018657284,1.17724492,122130.0,122120.0,0.8403]
[1760018657488,1.17724492,122130.0,122120.0,0.0107]
[1760018657686,1.17724492,122130.0,122120.0,0.8401]
[1760018657886,1.17724492,122130.0,122120.0,0.8381]
[1760018658088,1.17724492,122130.0,122120.0,0.0087]
[1760018658281,1.17724492,122130.0,122120.0,0.83766]
[1760018658484,1.17724492,122130.0,122120.0,0.0087]
[1760018658688,1.17724492,122130.0,122120.0,0.83746]
[1760018658895,1.17724492,122130.0,122120.0,0.0087]
[1760018659088,1.17724492,122130.0,122120.0,0.83722]
[1760018659283,1.17724492,122130.0,122120.0,0.0087]
[1760018659488,1.17724492,122130.0,122120.0,0.83682]
[1760018659690,1.17724492,122130.0,122120.0,0.0087]
[1760018659888,0.1100173,122100.0,122090.0,2.04396]
[1760018660084,1.17155222,122100.0,122090.0,2.04396]
[1760018660284,1.17155222,122100.0,122090.0,2.87176]
[1760018660485,0.04836,122070.0,122060.0,2.1731116]
[1760018660686,0.3608,122070.0,122060.0,3.0287441]
[1760018660886,0.3608,122070.0,122060.0,0.9843441]
[1760018661496,0.4426874,122070.0,122060.0,0.9843441]
[1760018661788,0.3608,122070.0,122060.0,0.9883441]
[1760018662095,0.4426807,122080.0,122070.0,0.1290674]
[1760018662788,0.40916,122080.0,122070.0,0.1290674]
[1760018663093,0.5191907,122080.0,122070.0,0.9549074]
[1760018664093,0.3608,122080.0,122070.0,0.1290674]
[1760018664394,0.3608,122080.0,122070.0,0.9850974]
[1760018664993,0.3608,122080.0,122070.0,0.1600574]
[1760018665496,0.3608,122080.0,122070.0,0.9844974]
[1760018665992,0.3608,122090.0,122080.0,0.0818807]
[1760018666198,0.3608,122090.0,122080.0,0.9736507]
[1760018666789,0.3608,122090.0,122080.0,0.1495707]
[1760018666991,0.3608,122090.0,122080.0,3.0176107]
[1760018667197,0.3608,122090.0,122080.0,2.1940507]
[1760018667393,0.3608,122090.0,122080.0,2.5940507]
[1760018667592,0.3608,122100.0,122090.0,0.150924]
[1760018667799,0.3608,122100.0,122090.0,0.550924]
[1760018667995,0.3608,122100.0,122090.0,1.373884]
[1760018668593,0.43731,122130.0,122120.0,0.1290339]
[1760018668792,0.40916,122140.0,122130.0,0.1290272]
[1760018668991,0.40916,122140.0,122130.0,2.1735072]
[1760018669196,0.40916,122140.0,122130.0,2.9958272]
[1760018669601,0.40916,122140.0,122130.0,2.9954272]
[1760018669900,0.40916,122140.0,122130.0,0.1290272]
[1760018670097,0.40916,122140.0,122130.0,2.9952672]
[1760018670299,0.40916,122140.0,122130.0,2.1735072]
[1760018670597,0.3608,122150.0,122140.0,0.0818405]
[1760018670794,0.3608,122150.0,122140.0,0.9796105]
[1760018672096,0.3608,122150.0,122140.0,0.5570105]
[1760018672901,0.3608,122160.0,122150.0,0.1570038]
[1760018673196,0.3608,122160.0,122150.0,3.0224838]
[1760018673610,0.3608,122170.0,122160.0,0.1508771]
[1760018673798,0.3608,122180.0,122160.0,0.53138057]
[1760018673999,0.3608,122190.0,122180.0,0.1289937]
[1760018674401,0.81781347,122190.0,122180.0,0.04718]
[1760018674602,0.81781347,122190.0,122180.0,0.1289937]
[1760018674803,0.81781347,122190.0,122180.0,0.9494337]
[1760018674999,0.78966347,122190.0,122180.0,0.1289937]
[1760018675302,0.3608,122190.0,122180.0,0.9489137]
[1760018675508,0.3608,122190.0,122180.0,0.9766237]
[1760018675700,0.3608,122190.0,122180.0,0.1569837]
[1760018675900,0.3608,122190.0,122180.0,2.2011037]
[1760018676096,0.3608,122190.0,122180.0,3.0206237]
[1760018676304,0.3608,122190.0,122180.0,2.98160717]
[1760018676509,0.3608,122190.0,122180.0,0.62309565]
[1760018676805,0.3608,122190.0,122180.0,2.27286963]
[1760018677000,0.3608,122200.0,122190.0,0.156977]
[1760018677202,0.3608,122210.0,122200.0,0.0818003]
[1760018677403,0.3608,122210.0,122200.0,0.9692903]
[1760018677908,0.40916,122210.0,122200.0,0.1289803]
[1760018678110,0.02815,122180.0,122140.0,0.10991363]
[1760018678307,0.3608,122150.0,122140.0,2.21852705]
[1760018678610,0.7216,122150.0,122140.0,2.13669145]
[1760018678808,0.7216,122150.0,122140.0,2.95661145]
[1760018679205,0.7216,122150.0,122140.0,0.09277145]
[1760018679404,0.7216,122150.0,122140.0,2.95645145]
[1760018679607,1.10210347,122150.0,122140.0,2.07391803]
[1760018679805,1.10210347,122150.0,122140.0,2.89327803]
[1760018680112,0.7216,122150.0,122140.0,2.89327803]
[1760018680298,1.50210347,122150.0,122140.0,0.03007803]
[1760018680499,0.3608,122150.0,122140.0,0.50308853]
[1760018680811,0.3608,122150.0,122140.0,1.33312853]
[1760018681002,0.3608,122150.0,122140.0,1.77753336]
[1760018681211,0.3608,122160.0,122150.0,0.1118338]
[1760018681812,0.4426271,122160.0,122150.0,0.84856]
[1760018682011,0.4426271,122160.0,122150.0,2.89236]
[1760018682212,0.4426271,122160.0,122150.0,0.03]
[1760018682412,0.4426271,122160.0,122150.0,2.8922]
[1760018682612,0.4426271,122160.0,122150.0,2.9750338]
[1760018682814,0.4426271,122160.0,122150.0,2.1566338]
[1760018683014,0.4426271,122160.0,122150.0,2.8926]
[1760018683310,0.4426271,122160.0,122140.0,3e-08]
[1760018683311,0.07449,122150.0,122140.0,3e-08]
[1760018683510,0.0818606,122110.0,122100.0,0.03]
[1760018683710,1.18396407,122110.0,122100.0,0.04588]
[1760018683928,0.8034606,122110.0,122100.0,0.01588]
[1760018684415,0.3608,122120.0,122110.0,0.1117206]
[1760018684617,0.36087535,122120.0,122110.0,0.9392806]
[1760018684914,0.36087535,122120.0,122110.0,0.5117206]
[1760018685215,0.36087535,122120.0,122110.0,1.40377826]
[1760018685617,0.36087535,122120.0,122110.0,1.40337826]
[1760018685826,0.36087535,122120.0,122110.0,1.78388173]
[1760018686114,0.36087535,122120.0,122110.0,1.40437826]
[1760018686506,7.535e-05,122120.0,122110.0,0.95784173]
[1760018686710,7.535e-05,122120.0,122110.0,1.40357826]
[1760018687006,7.535e-05,122120.0,122110.0,2.14488173]
[1760018687711,0.3608,122140.0,122130.0,0.1117072]
[1760018687912,0.3608,122140.0,122130.0,0.02986]
[1760018688111,0.3608,122140.0,122130.0,2.9813472]
[1760018688911,1.22314397,122140.0,122130.0,0.0818472]
[1760018689112,0.3608,122140.0,122130.0,2.5556272]
[1760018689316,0.3608,122140.0,122130.0,3.3071872]
[1760018689907,0.3608,122140.0,122130.0,3.3806272]
[1760018690113,0.3608,122150.0,122140.0,0.1117005]
[1760018691820,0.3608,122150.0,122140.0,0.9350605]
[1760018692216,0.3608,122160.0,122150.0,0.1116938]
[1760018692518,0.3608,122160.0,122150.0,1.31511727]
[1760018693515,0.3608,122160.0,122150.0,1.31611727]
[1760018694016,0.3608,122170.0,122160.0,0.1116871]
[1760018694220,0.3608,122170.0,122160.0,1.31451057]
[1760018695510,0.3608,122180.0,122170.0,0.1575704]
[1760018695710,0.3608,122190.0,122180.0,0.1575637]
[1760018696516,0.3608,122190.0,122180.0,2.2013637]
[1760018696815,0.3608,122190.0,122180.0,3.40222717]
[1760018697015,0.3608,122190.0,122180.0,2.98186717]
[1760018697217,0.3608,122210.0,122200.0,0.02986]
[1760018697415,0.3608,122210.0,122200.0,0.9319403]
[1760018697720,0.3608,122210.0,122200.0,0.9317403]
[1760018698111,0.3608,122220.0,122210.0,0.1116536]
[1760018698317,0.7216,122220.0,122210.0,0.1116536]
[1760018698926,0.7216,122220.0,122210.0,0.9311336]
[1760018699415,0.7216,122220.0,122210.0,1.31207707]
[1760018699616,0.7216,122220.0,122210.0,0.9315736]
[1760018700217,0.3608,122220.0,122210.0,0.9774636]
[1760018700417,0.3608,122230.0,122220.0,0.1575368]
[1760018700821,0.3608,122230.0,122220.0,0.9755368]
[1760018701222,0.3608,122230.0,122220.0,0.1575368]
[1760018701420,0.3608,122230.0,122220.0,1.35592027]
[1760018701620,0.3608,122230.0,122220.0,1.35572027]
[1760018701920,0.3608,122230.0,122220.0,0.53804027]
[1760018702120,0.3608,122230.0,122220.0,1.35572027]
[1760018702716,0.3608,122230.0,122220.0,0.93804027]
[1760018703115,0.3608,122230.0,122220.0,3.79820027]
[1760018703723,0.3608,122230.0,122220.0,2.98132027]
[1760018703924,0.3608,122240.0,122230.0,0.0817802]
[1760018704222,0.3608,122260.0,122250.0,0.1116268]
[1760018704425,0.38329255,122260.0,122250.0,0.53802027]
[1760018704614,0.38329255,122260.0,122250.0,0.9735568]
[1760018704815,0.38329255,122260.0,122250.0,0.1575168]
[1760018705218,0.38329255,122260.0,122250.0,3.0162368]
[1760018705618,0.3608,122260.0,122250.0,2.2006368]
[1760018705818,0.38320994,122260.0,122250.0,3.0161968]
[1760018706535,0.38320994,122260.0,122250.0,3.08076223]
[1760018707423,0.38320994,122260.0,122250.0,2.6466257]
[1760018707626,0.02240994,122260.0,122250.0,3.8604657]
[1760018707827,0.02240994,122260.0,122250.0,1.0035057]
[1760018708028,0.02240994,122260.0,122250.0,3.8600257]
[1760018708425,0.3608,122270.0,122260.0,0.0817601]
[1760018708629,0.4425535,122270.0,122260.0,0.07575]
[1760018708932,1.30177697,122270.0,122260.0,0.8949201]
[1760018709137,0.8920535,122270.0,122260.0,0.9406901]
[1760018709326,0.8920535,122270.0,122260.0,0.9703901]
[1760018709521,0.8425535,122270.0,122260.0,0.9703901]
[1760018709721,0.4,122270.0,122260.0,0.1575101]
[1760018709924,0.40543,122290.0,122280.0,0.1609868]
[1760018710126,0.40543,122290.0,122280.0,0.9735068]
[1760018710127,0.3608,122290.0,122280.0,0.9735068]
[1760018710643,0.40543,122300.0,122290.0,0.1310601]
[1760018710823,0.40543,122300.0,122290.0,0.1609801]
[1760018711021,0.40543,122300.0,122290.0,0.9731001]
[1760018711231,0.3608,122300.0,122290.0,0.9731001]
[1760018711531,0.3608,122300.0,122290.0,1.03889757]
[1760018711932,0.4425334,122300.0,122290.0,0.14503747]
[1760018712123,0.4871634,122300.0,122290.0,3.08069757]
[1760018712326,0.4871634,122300.0,122290.0,3.68751747]
[1760018712632,0.4871634,122300.0,122290.0,1.64503747]
[1760018712830,0.4871634,122300.0,122290.0,4.49847747]
[1760018713130,0.86766687,122300.0,122290.0,3.08021757]
[1760018713722,0.4871634,122300.0,122290.0,2.26921757]
[1760018713931,0.3608,122300.0,122290.0,3.07965757]
[1760018714228,0.3608,122300.0,122290.0,3.07945757]
[1760018714628,0.82303287,122310.0,122290.0,3.07945757]
[1760018714629,0.3608,122310.0,122290.0,3.04972104]
[1760018714828,0.3608,122310.0,122300.0,1.35127687]
[1760018715126,0.3608,122320.0,122310.0,0.1609667]
[1760018715330,0.3608,122330.0,122320.0,0.16096]
[1760018715527,0.3608,122330.0,122320.0,0.54146347]
[1760018715723,0.3608,122330.0,122320.0,0.16096]
[1760018715927,0.3608,122330.0,122320.0,1.75102347]
[1760018716732,0.3608,122330.0,122320.0,0.94146347]
[1760018717230,0.3608,122330.0,122320.0,3.79230347]
[1760018717427,0.3608,122340.0,122330.0,0.1609534]
[1760018717931,0.3608,122340.0,122330.0,1.41510104]
[1760018718333,0.3608,122340.0,122330.0,1.03459757]
[1760018718532,0.3608,122340.0,122330.0,1.43407757]
[1760018718737,0.3608,122340.0,122330.0,1.81458104]
[1760018719340,0.3608,122350.0,122340.0,0.1609467]
[1760018719534,0.3608,122350.0,122340.0,0.54145017]
[1760018719847,0.3608,122350.0,122340.0,3.0099067]
[1760018720038,0.40543,122350.0,122340.0,0.1609467]
[1760018720239,0.3608,122350.0,122340.0,2.58309017]
[1760018720433,0.3608,122350.0,122340.0,3.79025017]
[1760018720935,0.3608,122350.0,122330.0,0.45608417]
[1760018720936,0.43381,122350.0,122330.0,0.39072]
[1760018721134,0.02738,122330.0,122300.0,0.02992]
[1760018721333,0.40543,122310.0,122300.0,0.07924]
[1760018721538,0.3608,122310.0,122300.0,0.88908]
[1760018721741,0.3608,122310.0,122300.0,0.88904]
[1760018722034,0.40543,122310.0,122300.0,2.93032]
[1760018722537,0.3608,122310.0,122300.0,3.0120534]
[1760018722737,0.3608,122310.0,122300.0,3.79199687]
[1760018722934,0.4871567,122310.0,122300.0,0.54384218]
[1760018723129,0.4425267,122310.0,122300.0,3.07605558]
[1760018723329,0.3608,122320.0,122310.0,0.0817267]
[1760018723534,0.3608,122330.0,122320.0,0.1609539]
[1760018723733,0.3608,122330.0,122320.0,0.16096]
[1760018723734,0.4425133,122330.0,122320.0,0.16096]
[1760018723935,0.4425133,122330.0,122320.0,0.96956]
[1760018724134,0.4425133,122330.0,122320.0,0.07924]
[1760018724334,0.4425133,122330.0,122320.0,3.01076]
[1760018724639,0.4871433,122330.0,122320.0,2.1206]
[1760018725035,0.4871433,122330.0,122320.0,2.92868]
[1760018725241,0.4871433,122330.0,122320.0,2.92864]
[1760018725443,0.40543,122330.0,122320.0,3.01036]
[1760018726146,0.02738,122280.0,122250.0,0.1116837]
[1760018726440,0.3608,122270.0,122260.0,0.8398]
[1760018726637,0.4425534,122270.0,122260.0,2.88108]
[1760018727039,0.4425534,122270.0,122260.0,2.88088]
[1760018727238,0.4425534,122270.0,122260.0,2.9626401]
[1760018727634,0.3608,122280.0,122270.0,0.02992]
[1760018727838,0.3608,122280.0,122270.0,0.83908]
[1760018728143,0.3608,122280.0,122260.0,0.03092]
[1760018728440,0.4425503,122280.0,122270.0,2.04132]
[1760018728639,0.4425503,122280.0,122270.0,2.9617934]
[1760018729234,0.4425503,122280.0,122270.0,2.07124]
[1760018729441,0.4425503,122280.0,122270.0,2.9612734]
[1760018729735,1.20909305,122280.0,122270.0,2.04132]
[1760018729935,1.20909305,122280.0,122240.0,0.3608]
[1760018730141,1.20909305,122280.0,122230.0,0.3608]
[1760018730142,0.1091602,122230.0,122220.0,0.56274458]
[1760018730334,0.8307602,122230.0,122220.0,0.81182458]
[1760018730530,0.8307602,122230.0,122220.0,6.458e-05]
[1760018730531,0.02738,122230.0,122220.0,6.458e-05]
[1760018730732,0.3608,122230.0,122220.0,2.85310458]
[1760018730938,0.4425802,122230.0,122220.0,2.85310458]
[1760018731240,0.3608,122240.0,122220.0,2.96481148]
[1760018731641,0.4425802,122230.0,122220.0,2.07142458]
[1760018732140,0.4425802,122230.0,122220.0,2.96449148]
[1760018732736,0.3608,122230.0,122220.0,2.93457148]
[1760018732934,0.4425788,122240.0,122220.0,2.96449148]
[1760018733139,0.4425788,122240.0,122220.0,3.24350458]
[1760018733344,0.4425788,122240.0,122230.0,0.02992]
[1760018733740,0.0817802,122230.0,122220.0,6.458e-05]
[1760018733930,0.3608,122230.0,122220.0,0.81034458]
[1760018734131,0.01534,122200.0,122160.0,0.3608]
[1760018734331,0.0818107,122190.0,122180.0,0.02992]
[1760018734645,0.442607,122190.0,122180.0,0.84504]
[1760018735040,0.44267076,122190.0,122180.0,0.84464]
[1760018736139,0.44267076,122190.0,122180.0,0.02992]
[1760018736343,0.44267076,122190.0,122180.0,0.84392]
[1760018736955,0.44267076,122190.0,122180.0,0.02992]
[1760018737244,0.44267076,122190.0,122180.0,0.84344]
[1760018737539,6.376e-05,122190.0,122180.0,0.84348]
[1760018737847,0.08187076,122190.0,122180.0,0.02992]
[1760018738144,0.44267076,122190.0,122180.0,0.84324]
[1760018738347,0.44267076,122190.0,122140.0,2.04172]
[1760018738348,0.02738,122160.0,122120.0,0.53744444]
[1760018738545,0.4426472,122130.0,122120.0,0.03002318]
[1760018738742,0.0818472,122130.0,122120.0,0.85462318]
[1760018739039,0.0818472,122130.0,122120.0,0.03002318]
[1760018739243,0.4426472,122130.0,122120.0,0.82430318]
[1760018739746,0.4426472,122130.0,122120.0,0.47062708]
[1760018739747,7.726e-05,122130.0,122120.0,0.47062708]
[1760018740041,7.726e-05,122130.0,122120.0,0.85392239]
[1760018740244,7.726e-05,122130.0,122120.0,1.35965629]
[1760018740449,7.726e-05,122130.0,122120.0,1.75965629]
[1760018740749,7.726e-05,122130.0,122120.0,0.93577629]
[1760018740945,7.726e-05,122130.0,122120.0,1.76033629]
[1760018741341,7.726e-05,122130.0,122120.0,0.93577629]
[1760018741745,7.726e-05,122130.0,122120.0,1.75961629]
[1760018741945,0.3608,122140.0,122130.0,0.08718994]
[1760018742542,0.4426405,122140.0,122130.0,2.87178274]
[1760018743047,0.4426405,122140.0,122130.0,2.89901274]
[1760018743446,0.4426405,122140.0,122130.0,2.07605274]
[1760018743746,0.4426405,122140.0,122130.0,2.89833274]
[1760018743943,0.4426405,122140.0,122130.0,2.07605274]
[1760018744339,0.4426405,122140.0,122130.0,4.39793274]
[1760018744540,0.4426405,122140.0,122130.0,4.47977994]
[1760018745047,0.3608,122140.0,122130.0,3.65789994]
[1760018745244,0.4426338,122150.0,122140.0,0.1084605]
[1760018745540,0.3608,122150.0,122140.0,0.1084605]
[1760018745749,0.3608,122150.0,122140.0,0.9294205]
[1760018745944,0.4426298,122160.0,122150.0,0.1084538]
[1760018746143,0.4426298,122160.0,122150.0,0.02662]
[1760018746446,0.3608,122160.0,122150.0,0.1084538]
[1760018746943,0.442623,122170.0,122160.0,0.1084471]
[1760018747136,0.442623,122170.0,122160.0,0.9287271]
[1760018747339,0.3608,122170.0,122160.0,0.1084471]
[1760018747536,0.3608,122170.0,122160.0,0.9283671]
[1760018747944,0.3608,122170.0,122160.0,0.9281271]
[1760018748145,0.3608,122180.0,122170.0,0.1084371]
[1760018748445,0.442607,122190.0,122180.0,0.1084337]
[1760018748744,0.442607,122190.0,122180.0,2.8893]
[1760018748937,0.4426038,122200.0,122180.0,2.1516737]
[1760018749142,0.081807,122190.0,122180.0,2.1516737]
[1760018749343,0.081807,122190.0,122180.0,2.9707137]
[1760018749542,0.442604,122200.0,122180.0,2.8889]
[1760018749747,0.4426047,122200.0,122190.0,0.02662]
[1760018750543,0.4426047,122200.0,122190.0,0.108427]
[1760018750952,0.3608,122200.0,122190.0,0.926307]
[1760018751146,0.3608,122210.0,122200.0,0.1084203]
[1760018751349,0.442597,122210.0,122200.0,0.1084203]
[1760018751538,0.442597,122210.0,122200.0,0.9263003]
[1760018752048,0.3608,122210.0,122200.0,0.9261003]
[1760018752247,0.3608,122220.0,122210.0,0.1084136]
[1760018752446,0.3608,122220.0,122210.0,0.9256136]
[1760018753040,0.3608,122230.0,122220.0,0.1084069]
[1760018753349,0.3608,122230.0,122220.0,0.9251269]
[1760018753648,0.3608,122230.0,122220.0,0.9250469]
[1760018753852,0.0937565,122210.0,122160.0,0.25506806]
[1760018754052,0.4426167,122180.0,122170.0,0.84898]
[1760018754243,0.4426167,122180.0,122170.0,0.02662]
[1760018755148,0.4426167,122180.0,122170.0,0.86994]
[1760018755343,0.4426167,122180.0,122170.0,0.02662]
[1760018755550,0.4426167,122180.0,122170.0,0.86946]
[1760018755750,0.4426167,122180.0,122170.0,0.02662]
[1760018756452,0.4426167,122180.0,122170.0,0.8687]
[1760018756654,0.4426167,122180.0,122170.0,0.8697]
[1760018756846,0.4426167,122180.0,122170.0,0.86918]
[1760018757042,0.4426167,122180.0,122170.0,0.02762]
[1760018757549,0.0818338,122150.0,122140.0,0.12488076]
[1760018757741,1.14259655,122150.0,122140.0,0.97112076]
[1760018757946,0.0818405,122140.0,122130.0,0.03196274]
[1760018758150,0.4426405,122140.0,122130.0,0.87796274]
[1760018758846,0.4426405,122140.0,122130.0,0.03196274]
[1760018759049,0.3608,122150.0,122140.0,0.02662]
[1760018759247,0.3608,122150.0,122140.0,0.1084558]
[1760018759651,0.4426338,122150.0,122140.0,0.87222]
[1760018759948,0.3608,122160.0,122150.0,0.1084538]
[1760018760250,0.4426271,122160.0,122150.0,0.02662]
[1760018760462,0.3608,122160.0,122150.0,0.1084538]
[1760018760651,0.3608,122160.0,122150.0,0.9530538]
[1760018760950,0.3608,122160.0,122150.0,1.3530538]
[1760018761152,0.3608,122190.0,122180.0,0.1084337]
[1760018761357,0.3608,122200.0,122190.0,0.108427]
[1760018761544,0.3608,122200.0,122190.0,0.87094]
[1760018761749,0.4426003,122200.0,122190.0,0.9527433]
[1760018762154,0.4426003,122200.0,122190.0,0.87094]
[1760018762751,0.4426003,122200.0,122190.0,0.952747]
[1760018762951,0.4426003,122200.0,122190.0,0.87094]
[1760018763155,0.4426003,122200.0,122190.0,0.952747]
[1760018763450,0.3608,122200.0,122190.0,0.952747]
[1760018763652,0.442598,122210.0,122200.0,0.1084203]
[1760018763856,0.442598,122210.0,122200.0,0.02662]
[1760018764955,0.0818003,122200.0,122190.0,0.02662]
[1760018765149,0.4426003,122200.0,122190.0,0.950027]
[1760018765758,0.0818003,122200.0,122190.0,0.950027]
[1760018765960,0.4426003,122200.0,122190.0,0.950027]
[1760018766159,0.4425941,122210.0,122200.0,0.1084203]
[1760018766357,0.4425936,122210.0,122200.0,0.1084203]
[1760018766558,0.081807,122190.0,122140.0,0.38742]
[1760018766860,0.4426371,122150.0,122140.0,0.02662]
[1760018767059,0.3608,122150.0,122140.0,0.02662]
[1760018767256,0.3608,122150.0,122140.0,2.4635805]
[1760018767459,0.4426245,122170.0,122160.0,0.02662]
[1760018767665,0.4426245,122170.0,122160.0,2.92526]
[1760018767860,0.4426245,122170.0,122160.0,2.0699]
[1760018768359,0.4426245,122170.0,122160.0,2.92486]
[1760018768661,0.4426245,122170.0,122160.0,2.92458]
[1760018769250,0.4426245,122170.0,122160.0,0.02662]
[1760018769451,0.4426245,122170.0,122160.0,2.92434]
[1760018769958,0.4426245,122170.0,122160.0,2.92326]
[1760018770160,0.4426245,122170.0,122160.0,2.92298]
[1760018770362,0.4426245,122170.0,122160.0,2.9227]
[1760018772562,0.4426245,122170.0,122160.0,2.06994]
[1760018773363,0.4426245,122170.0,122160.0,2.92002]
[1760018773561,0.0818245,122170.0,122160.0,3.0018471]
[1760018773758,0.0818204,122170.0,122160.0,0.02662]
[1760018773964,0.0818271,122160.0,122150.0,0.02662]
[1760018774262,0.0818338,122150.0,122140.0,0.02662]
[1760018774456,0.78179655,122150.0,122140.0,0.02662]
[1760018774659,0.0818472,122130.0,122120.0,2.07133318]
[1760018774861,0.42100995,122130.0,122120.0,2.89330318]
[1760018775061,1.14260995,122130.0,122120.0,2.04350318]
[1760018775262,0.8034472,122130.0,122120.0,2.92089318]
[1760018775564,0.8034472,122130.0,122120.0,0.95934708]
[1760018776364,0.8034472,122130.0,122120.0,0.87749318]
[1760018777365,0.7216,122130.0,122120.0,0.95934708]
[1760018777965,0.8034472,122130.0,122120.0,0.87749318]
[1760018778160,0.8034472,122130.0,122120.0,0.02793318]
[1760018778364,0.8034472,122130.0,122120.0,0.87501318]
[1760018778566,0.8034472,122130.0,122120.0,0.10978708]
[1760018778864,0.8034472,122130.0,122120.0,0.02793318]
[1760018779258,0.8034472,122130.0,122120.0,0.95610708]
[1760018779664,0.8034472,122130.0,122120.0,0.87425318]
[1760018779965,0.8034472,122130.0,122120.0,2.91797318]
[1760018780569,0.8034472,122130.0,122120.0,2.07161318]
[1760018780867,0.8034472,122130.0,122120.0,2.99854708]
[1760018781268,0.8034472,122130.0,122120.0,2.91669318]
[1760018781462,0.8034472,122130.0,122120.0,2.99854708]
[1760018781857,0.7216,122130.0,122120.0,2.99854708]
[1760018782065,0.8034472,122130.0,122120.0,2.99854708]
[1760018782469,0.8034472,122130.0,122120.0,2.15346708]
[1760018782667,0.8034472,122130.0,122120.0,2.99702708]
[1760018782856,0.8034472,122130.0,122120.0,2.15346708]
[1760018783062,0.8034472,122130.0,122120.0,2.07161318]
[1760018783569,0.8034472,122130.0,122120.0,2.15346708]
[1760018783762,0.8034472,122130.0,122120.0,2.99630708]
[1760018784165,0.442641,122140.0,122130.0,0.1096705]
[1760018784668,0.442641,122140.0,122130.0,0.9518305]
[1760018785166,0.3608,122140.0,122130.0,0.1569505]
[1760018785363,0.3608,122140.0,122130.0,0.9990305]
[1760018786065,0.4426338,122150.0,122140.0,0.1569505]
[1760018786872,0.4426338,122150.0,122140.0,0.07511]
[1760018787068,0.4426338,122150.0,122140.0,0.91587]